bitfinex/quotes_ETHUSD_20251218
["timestamp","ask_amount","ask_price","bid_price","bid_amount"]
[1766065327566,4.924,2930.6,2929.5,3.41348434]
[1766065327853,5.511,2930.5,2929.6,3.41336052]
[1766065328017,0.587,2930.7,2929.7,2.4196]
[1766065328218,7.4184,2931.0,2929.6,0.03413435]
[1766065328447,4.924,2931.8,2930.5,2.4196]
[1766065328646,0.587,2931.5,2930.6,0.09556477]
[1766065328847,4.924,2933.1,2931.1,0.09556477]
[1766065329022,4.924,2932.7,2931.2,2.4196]
[1766065329231,0.62961847,2933.0,2931.1,0.09556477]
[1766065329232,4.924,2932.5,2931.5,0.09556477]
[1766065329430,4.924,2932.5,2931.3,0.09556477]
[1766065329431,5.66584,2932.4,2931.0,2.4196]
[1766065329634,0.587,2932.3,2931.2,2.4196]
[1766065329962,5.66584,2932.4,2931.1,0.09556477]
[1766065329963,0.587,2932.4,2931.5,2.51516477]
[1766065331349,0.587,2932.6,2931.6,2.4196]
[1766065331552,0.002,2932.7,2931.7,2.51516477]
[1766065331753,0.003,2933.3,2932.1,2.4196]
[1766065332060,4.924,2933.0,2931.9,0.09556477]
[1766065332431,0.003,2933.3,2932.2,2.5211]
[1766065332738,5.80859707,2933.3,2932.2,2.5211]
[1766065332972,5.80859707,2933.3,2931.6,22.519442]
[1766065332973,4.972,2933.1,2931.6,22.519442]
[1766065333181,4.972,2932.5,2931.6,22.519442]
[1766065333365,0.62962719,2932.4,2930.5,4.644991]
[1766065333560,0.405504,2932.0,2929.3,0.09556477]
[1766065333788,2.442,2931.4,2929.9,0.09556477]
[1766065334104,2.442,2930.8,2929.5,0.587]
[1766065334299,5.559,2930.7,2929.5,0.09556477]
[1766065334511,7.6582,2931.3,2929.8,2.61666477]
[1766065334798,0.09556477,2932.9,2930.8,2.5211]
[1766065334799,4.972,2931.9,2930.8,2.5211]
[1766065334964,0.003,2931.7,2930.8,2.5211]
[1766065335167,0.003,2931.7,2931.0,0.09556477]
[1766065335405,2.442,2933.1,2931.4,0.09556477]
[1766065335606,0.8302,2933.0,2931.2,0.09556477]
[1766065335793,7.414,2932.6,2931.2,0.09556477]
[1766065335991,4.972,2932.2,2931.0,0.09556477]
[1766065336383,4.972,2932.2,2931.2,0.09556477]
[1766065336688,4.972,2932.6,2931.4,0.09556477]
[1766065336888,4.972,2932.6,2931.4,3.50688028]
[1766065336889,0.586,2932.5,2931.4,3.50688028]
[1766065337214,5.558,2932.5,2931.7,0.09556477]
[1766065337917,4.972,2932.4,2931.4,2.61666477]
[1766065338121,4.972,2932.4,2931.4,6.02798712]
[1766065338415,4.972,2932.4,2931.6,0.09556477]
[1766065338589,4.972,2932.4,2931.4,2.61666477]
[1766065338791,4.972,2933.4,2931.6,0.09556477]
[1766065339100,4.972,2934.3,2932.8,0.09556477]
[1766065339299,4.972,2934.3,2933.3,0.09556477]
[1766065339300,0.586,2934.1,2933.3,0.09556477]
[1766065339494,0.0446054,2933.9,2933.0,2.5211]
[1766065339692,4.974,2933.9,2932.8,0.09556477]
[1766065339901,4.974,2933.9,2933.0,0.09556477]
[1766065340088,0.8022,2933.9,2933.0,0.09556477]
[1766065340292,0.588,2933.9,2933.0,0.09556477]
[1766065340514,4.972,2933.4,2932.4,0.09556477]
[1766065340808,4.972,2933.2,2932.0,2.61666477]
[1766065341049,4.972,2933.1,2932.0,0.09556477]
[1766065341338,4.972,2933.1,2931.8,0.09556477]
[1766065341339,4.972,2932.7,2931.8,0.09556477]
[1766065341530,0.04261557,2933.2,2931.8,0.09556477]
[1766065341531,1.3274,2932.6,2931.8,0.09556477]
[1766065341742,1.3274,2932.6,2931.9,0.03410757]
[1766065341743,0.586,2932.6,2931.9,0.03410757]
[1766065341928,0.586,2932.6,2931.9,2.5211]
[1766065342266,9.26229642,2933.3,2932.2,2.61666477]
[1766065342267,0.586,2933.0,2932.2,2.61666477]
[1766065342619,0.586,2933.2,2932.4,2.61666477]
[1766065342827,0.586,2933.2,2932.1,0.03410524]
[1766065342828,0.586,2933.2,2932.1,0.09556477]
[1766065343046,0.586,2933.2,2932.3,0.09556477]
[1766065343249,5.558,2933.2,2932.3,0.09556477]
[1766065343549,0.586,2933.2,2932.3,0.09556477]
[1766065343725,5.558,2933.2,2932.1,0.09556477]
[1766065344178,4.972,2933.0,2932.1,0.09556477]
[1766065344333,10.22942771,2933.3,2931.8,2.5211]
[1766065344334,0.4972,2932.9,2931.8,2.5211]
[1766065344655,0.002,2933.3,2932.5,2.5211]
[1766065344847,0.588,2933.3,2932.5,2.5211]
[1766065345245,5.56,2933.3,2932.3,0.09556477]
[1766065346333,8.96913115,2933.3,2932.3,0.09556477]
[1766065346532,1.14111312,2933.2,2932.3,0.09556477]
[1766065346737,2.442,2932.9,2931.2,0.46438023]
[1766065346933,7.414,2932.5,2931.1,3.41162061]
[1766065347153,14.23277312,2933.1,2931.7,2.5211]
[1766065347352,2.442,2932.9,2931.7,2.5211]
[1766065347526,4.972,2932.4,2931.6,0.09556477]
[1766065347727,5.558,2932.3,2931.4,0.09556477]
[1766065347937,0.586,2932.3,2930.4,0.68156477]
[1766065348161,4.972,2932.9,2931.6,2.5211]
[1766065348363,0.586,2932.8,2931.8,2.5211]
[1766065348534,5.558,2932.8,2931.5,2.61666477]
[1766065348858,1.35119447,2932.8,2931.8,2.5211]
[1766065349029,0.002,2932.2,2931.8,2.5211]
[1766065349464,0.002,2932.2,2931.7,0.09556477]
[1766065349465,0.586,2932.8,2931.6,2.5211]
[1766065349767,0.586,2932.8,2931.9,2.5211]
[1766065350567,0.002,2933.3,2932.1,2.5211]
[1766065350762,0.585,2933.2,2932.2,0.09556477]
[1766065350967,0.585,2933.2,2932.2,3.50597333]
[1766065351165,0.002,2933.3,2932.4,2.61666477]
[1766065351543,4.972,2934.3,2932.9,2.5211]
[1766065351864,3.99308397,2934.2,2932.9,2.5211]
[1766065352043,4.972,2934.1,2932.9,2.5211]
[1766065352241,1.18757245,2934.0,2932.9,2.5211]
[1766065352470,1.1449685,2934.0,2932.9,2.5211]
[1766065352659,1.18757245,2934.0,2932.9,2.5211]
[1766065352833,4.972,2933.8,2932.7,0.585]
[1766065353169,4.972,2933.6,2932.4,0.09556477]
[1766065353339,4.972,2933.4,2932.4,0.09556477]
[1766065353534,7.414,2933.4,2932.4,0.09556477]
[1766065353933,0.585,2933.5,2932.4,2.61666477]
[1766065354130,0.585,2933.5,2932.5,2.5211]
[1766065354332,4.972,2933.3,2932.2,0.09556477]
[1766065354545,4.972,2933.3,2932.4,3.41013691]
[1766065354745,3.027,2933.4,2932.3,2.5211]
[1766065354746,0.585,2933.4,2932.3,2.5211]
[1766065354945,4.972,2933.0,2931.9,0.09556477]
[1766065355263,5.557,2932.9,2931.9,0.09556477]
[1766065356134,5.557,2932.9,2931.9,3.50631183]
[1766065356334,5.557,2932.9,2931.9,0.09556477]
[1766065356551,0.585,2932.9,2931.9,0.09556477]
[1766065356765,0.585,2933.5,2932.4,2.61666477]
[1766065356966,0.585,2933.5,2932.4,0.09556477]
[1766065357140,4.972,2933.4,2932.4,0.09556477]
[1766065357878,7.4127,2933.2,2931.9,0.09556477]
[1766065358084,5.72747,2933.1,2931.9,0.09656477]
[1766065358280,4.6216,2932.9,2931.9,0.09656477]
[1766065358438,2.976,2933.0,2930.7,0.001]
[1766065358439,4.6216,2932.7,2930.7,0.001]
[1766065358639,2.391,2932.0,2930.7,0.001]
[1766065358872,2.391,2931.4,2930.7,0.001]
[1766065359201,3.41150205,2931.3,2930.1,0.09556477]
[1766065359359,3.41136316,2931.4,2930.1,0.09556477]
[1766065359360,0.2383,2931.9,2931.0,0.09556477]
[1766065359564,4.6216,2932.4,2931.0,2.54776477]
[1766065359775,5.2066,2932.3,2931.0,2.54776477]
[1766065360089,0.585,2932.6,2931.5,2.566]
[1766065360288,4.6114,2932.2,2931.4,0.09556477]
[1766065360593,0.585,2932.1,2931.0,0.09556477]
[1766065360795,0.585,2932.1,2931.1,0.09556477]
[1766065360993,0.585,2932.1,2931.1,3.50721475]
[1766065361163,4.6114,2932.3,2931.3,0.09556477]
[1766065361494,4.6114,2931.9,2930.8,0.09556477]
[1766065361679,0.585,2931.8,2930.9,0.09556477]
[1766065361883,7.2081,2931.7,2930.7,0.09556477]
[1766065362193,0.585,2931.8,2930.7,0.09556477]
[1766065362382,7.7931,2931.8,2930.9,0.09556477]
[1766065362578,0.585,2931.7,2931.3,0.09556477]
[1766065362765,4.6833,2932.9,2931.6,1.022]
[1766065362958,0.72602,2932.8,2932.1,0.09556477]
[1766065363192,0.585,2933.1,2932.1,0.09556477]
[1766065363497,7.5264,2933.0,2932.1,0.09556477]
[1766065364059,2.3872,2933.0,2931.7,0.10231051]
[1766065364260,5.1392,2933.8,2932.4,0.10231051]
[1766065364455,3.41044493,2933.9,2932.3,0.10231051]
[1766065364456,2.3872,2933.6,2932.3,0.10231051]
[1766065364696,7.5264,2933.6,2932.3,0.10231051]
[1766065364858,0.585,2933.6,2932.9,0.10231051]
[1766065365689,3.40733791,2934.9,2932.9,0.10231051]
[1766065365690,0.002,2935.1,2933.5,0.10231051]
[1766065365890,0.05,2938.1,2934.8,1.02]
[1766065365891,5.1392,2937.1,2934.8,1.02]
[1766065366069,2.3872,2936.3,2934.7,16.152473]
[1766065366267,8.65045242,2937.4,2934.3,8.72634191]
[1766065366268,3.40347761,2938.2,2934.4,1.02]
[1766065366468,3.40347761,2938.2,2935.0,6.633821]
[1766065366469,2.3872,2937.0,2935.0,6.633821]
[1766065366688,5.1392,2937.3,2935.4,1.02]
[1766065367009,1.94670341,2937.4,2935.9,1.02]
[1766065367322,2.3872,2937.1,2935.4,2.20586999]
[1766065367508,6.8080471,2937.7,2935.6,5.430476]
[1766065367509,7.5264,2937.0,2935.6,5.430476]
[1766065367809,7.5264,2937.0,2935.5,0.03406574]
[1766065367810,6.8080471,2937.7,2935.5,3.1528]
[1766065367986,4.7482,2937.5,2934.8,0.46438023]
[1766065368186,2.3881,2936.8,2935.1,1.02]
[1766065368399,4.7992,2936.3,2934.7,3.40749556]
[1766065368602,2.3779,2936.1,2934.3,0.1782]
[1766065368812,9.94248764,2936.7,2934.3,0.1782]
[1766065368813,0.002,2935.1,2934.3,0.1782]
[1766065369225,2.3779,2935.0,2934.3,0.1782]
[1766065369518,4.7992,2934.5,2934.3,1e-08]
[1766065369683,0.584,2934.4,2932.4,1.02]
[1766065370077,4.7992,2934.1,2932.6,11.174189]
[1766065370282,4.7992,2934.1,2932.4,6.82032498]
[1766065370283,0.584,2934.1,2932.8,3.926355]
[1766065370508,0.24099,2934.9,2933.1,2.3725]
[1766065370711,0.584,2934.7,2933.3,13.409944]
[1766065370887,6.81361358,2935.3,2933.3,13.409944]
[1766065370888,4.7992,2936.1,2934.2,1.02]
[1766065371089,4.7992,2936.1,2934.1,19.94377451]
[1766065371090,0.584,2936.1,2934.6,1.02]
[1766065371290,4.7992,2936.7,2935.0,1.02]
[1766065371517,2.3779,2936.5,2934.9,0.584]
[1766065371691,0.584,2936.2,2934.9,0.584]
[1766065371883,5.3832,2936.2,2934.9,0.584]
[1766065372084,5.3832,2936.2,2934.5,1.12231051]
[1766065372085,2.3779,2936.1,2934.5,0.10231051]
[1766065372388,4.7992,2936.0,2934.5,0.10231051]
[1766065372592,0.71771,2935.9,2934.5,0.10231051]
[1766065372907,7.1771,2935.5,2933.8,9.382538]
[1766065373107,4.7992,2935.2,2933.7,1.604]
[1766065373309,5.3832,2935.1,2933.7,0.584]
[1766065373815,2.3779,2935.0,2933.2,0.33956051]
[1766065374017,4.7992,2934.5,2932.8,0.584]
[1766065374217,4.7992,2933.9,2932.3,0.10231051]
[1766065374395,0.584,2934.4,2932.0,0.001]
[1766065374396,7.1771,2933.3,2932.0,0.001]
[1766065374597,7.7611,2933.2,2932.0,0.001]
[1766065374785,0.584,2933.1,2932.0,1.021]
[1766065374983,0.584,2933.6,2932.2,1.02]
[1766065375187,3.40796782,2934.3,2932.5,1.02]
[1766065375393,0.584,2934.0,2932.6,1.02]
[1766065375688,0.584,2934.0,2932.4,0.10231051]
[1766065375901,2.3779,2933.7,2932.4,0.10231051]
[1766065376218,2.3779,2933.7,2932.1,3.41052487]
[1766065376219,8.89410741,2933.9,2931.9,0.10331051]
[1766065376417,4.7992,2933.7,2931.9,0.001]
[1766065376612,2.3779,2933.2,2931.9,0.001]
[1766065376795,2.3779,2933.1,2931.9,0.03510757]
[1766065377000,2.3779,2933.1,2932.0,3.41159228]
[1766065377320,5.3832,2933.0,2932.0,0.001]
[1766065377614,7.1771,2932.8,2932.0,0.001]
[1766065377816,0.584,2932.7,2932.0,0.001]
[1766065378112,4.7992,2932.6,2932.0,0.001]
[1766065378417,0.584,2932.5,2932.0,0.001]
[1766065379014,0.66130685,2932.9,2932.0,0.001]
[1766065379192,1.13005069,2932.8,2932.0,0.001]
[1766065379892,0.584,2932.7,2932.0,0.001]
[1766065380093,4.7992,2932.9,2932.0,0.03510641]
[1766065380294,3.40873718,2933.7,2932.0,1.021]
[1766065380611,0.584,2933.6,2932.0,0.001]
[1766065380811,4.8149,2933.1,2932.0,0.001]
[1766065381013,10.22568449,2933.8,2932.0,0.001]
[1766065381014,0.584,2933.5,2932.0,6.8222824]
[1766065381319,5.98983506,2934.0,2932.3,1.12231051]
[1766065381621,7.9784,2933.9,2932.3,1.12231051]
[1766065381792,4.8149,2933.8,2932.3,0.10231051]
[1766065381995,4.8149,2933.4,2932.4,0.03410175]
[1766065382194,7.43131688,2933.9,2932.0,0.001]
[1766065382195,0.584,2933.3,2932.5,0.03410059]
[1766065382394,0.002,2934.0,2932.8,0.10231051]
[1766065382589,0.584,2933.9,2933.1,0.10231051]
[1766065382826,4.8149,2934.7,2933.7,0.10231051]
[1766065383121,4.8169,2935.2,2934.1,0.10231051]
[1766065383324,0.584,2935.8,2934.5,0.10231051]
[1766065383639,5.3989,2935.8,2934.5,0.10231051]
[1766065383794,7.9784,2935.8,2934.5,0.10231051]
[1766065383989,7.3944,2935.8,2934.5,0.10231051]
[1766065384199,0.584,2936.1,2935.3,0.10231051]
[1766065384424,4.8149,2936.8,2935.3,0.10231051]
[1766065384425,0.584,2936.2,2935.3,0.10231051]
[1766065384625,7.3944,2937.3,2935.7,0.10231051]
[1766065384800,6.80874242,2937.4,2935.3,0.10231051]
[1766065384801,7.43131688,2937.1,2935.3,0.10231051]
[1766065385001,3.21985079,2936.9,2935.6,0.10231051]
[1766065385331,2.00431424,2937.2,2936.2,0.10231051]
[1766065385332,1.42031424,2937.2,2936.2,0.10231051]
[1766065385501,0.584,2937.1,2936.2,0.10231051]
[1766065385698,2.5795,2937.0,2936.0,0.10231051]
[1766065386025,0.584,2937.1,2933.9,3.51068652]
[1766065386026,0.002,2936.3,2933.9,3.51068652]
[1766065386227,0.002,2936.3,2935.6,0.10231051]
[1766065386538,3.40411309,2937.7,2936.1,0.10231051]
[1766065386539,2.5795,2937.7,2936.1,0.10231051]
[1766065386840,6.80735194,2938.0,2935.6,0.10231051]
[1766065386841,2.5795,2937.2,2935.6,0.10231051]
[1766065387008,2.5795,2937.2,2936.1,0.10231051]
[1766065387198,0.584,2937.1,2936.3,0.10231051]
[1766065388635,0.584,2937.2,2936.0,0.10231051]
[1766065388947,7.43131688,2938.3,2936.6,0.10231051]
[1766065389097,0.00620899,2939.0,2936.6,0.10231051]
[1766065389098,4.8149,2938.7,2937.5,0.10231051]
[1766065389305,0.583,2938.8,2937.5,0.10231051]
[1766065389306,7.3944,2938.5,2937.5,0.10231051]
[1766065389496,7.3944,2938.5,2937.7,0.09082521]
[1766065389738,0.73944,2938.4,2936.4,0.10231051]
[1766065389956,4.8149,2937.7,2937.2,0.10231051]
[1766065390245,3.40263363,2938.9,2937.5,0.10231051]
[1766065390480,4.8149,2938.8,2938.0,0.10231051]
[1766065390727,2.5795,2939.2,2938.4,0.09073057]
[1766065390944,2.5795,2939.2,2938.0,0.10231051]
[1766065390945,3.41456431,2938.9,2937.8,0.09066381]
[1766065391109,7.3944,2938.7,2938.2,0.10231051]
[1766065391308,0.1305157,2939.4,2937.5,3.40420134]
[1766065391309,7.3944,2939.3,2938.1,0.10231051]
[1766065391625,0.1305157,2939.4,2938.5,0.10231051]
[1766065391822,7.3944,2938.9,2938.2,0.10231051]
[1766065392002,7.3944,2938.9,2938.0,0.10231051]
[1766065392003,0.1305157,2939.4,2938.3,0.10231051]
[1766065392206,10.79670502,2939.2,2938.9,0.10231051]
[1766065392410,7.7162157,2939.4,2938.7,2.102e-05]
[1766065392700,0.1305157,2939.4,2938.8,0.10231051]
[1766065392901,0.1305157,2939.4,2938.8,0.68531051]
[1766065393115,7.43131688,2941.5,2939.3,0.10231051]
[1766065393317,5.0436,2941.7,2940.1,0.10231051]
[1766065393542,2.5421,2941.5,2940.3,0.10231051]
[1766065393833,5.0436,2940.7,2939.8,0.10231051]
[1766065394036,7.5857,2940.6,2938.9,3.1582]
[1766065394346,7.5857,2941.4,2939.3,0.10231051]
[1766065394501,0.583,2941.5,2939.0,0.10231051]
[1766065394502,2.5421,2940.8,2939.6,0.10231051]
[1766065394703,2.5421,2941.2,2939.8,0.10231051]
[1766065394899,7.43131688,2941.2,2938.8,3.2867]
[1766065395100,7.43131688,2941.2,2938.9,0.10231051]
[1766065395101,5.0436,2940.5,2938.9,0.10231051]
[1766065395305,10.20199959,2940.6,2938.9,0.10231051]
[1766065395306,5.0436,2939.9,2938.9,0.10231051]
[1766065395543,1.52455996,2940.4,2939.0,3.39071051]
[1766065395730,6.79763442,2942.2,2939.6,0.10231051]
[1766065396035,6.79763442,2942.2,2939.2,0.10231051]
[1766065396036,5.0436,2941.2,2939.2,0.10231051]
[1766065396352,2.5421,2940.3,2938.4,2.20221051]
[1766065396502,7.5857,2940.0,2938.4,2.0999]
[1766065396706,2.5421,2939.4,2937.7,0.10231051]
[1766065396906,5.92724802,2939.3,2937.9,0.10231051]
[1766065397110,7.5857,2938.8,2937.7,0.10231051]
[1766065397334,0.405504,2938.7,2936.9,2.0999]
[1766065397537,1.04738023,2938.6,2937.0,0.10231051]
[1766065397738,7.5857,2938.5,2937.0,0.10231051]
[1766065397937,3.40240209,2939.1,2938.0,0.10231051]
[1766065398246,6.80480418,2939.1,2938.1,0.10231051]
[1766065398546,3.40240209,2939.1,2938.1,0.10231051]
[1766065398715,15.27379605,2939.3,2938.0,0.10231051]
[1766065399035,7.68809605,2939.3,2938.2,0.10231051]
[1766065399237,10.1995716,2941.3,2939.1,0.10231051]
[1766065399439,5.0436,2940.8,2939.1,0.10231051]
[1766065399609,5.0436,2940.8,2939.8,0.10231051]
[1766065399940,6.7997144,2941.3,2940.0,0.10231051]
[1766065400140,0.67997144,2941.2,2940.3,0.10231051]
[1766065400323,6.7997144,2941.3,2940.3,0.10231051]
[1766065400564,5.0436,2940.9,2939.9,0.10231051]
[1766065400727,6.7997144,2941.3,2939.9,0.10231051]
[1766065400728,0.583,2940.8,2939.9,0.10231051]
[1766065401046,6.80063926,2940.9,2939.6,0.10231051]
[1766065401250,7.39153812,2943.0,2940.5,0.10231051]
[1766065401459,5.0436,2942.6,2941.2,0.10231051]
[1766065401634,17.72919761,2942.9,2940.5,0.38502992]
[1766065401635,0.1023105,2941.2,2941.1,0.10231051]
[1766065401826,0.1023105,2941.2,2940.9,0.10231051]
[1766065402048,20.38805256,2942.9,2940.9,0.10231051]
[1766065402049,7.5857,2943.4,2941.8,0.10231051]
[1766065402252,7.5857,2943.4,2942.4,0.10231051]
[1766065402428,7.5857,2943.4,2942.2,0.10231051]
[1766065402629,7.39153812,2943.0,2941.7,1e-08]
[1766065402849,7.5857,2942.7,2941.4,1e-08]
[1766065403055,0.582,2942.9,2941.4,1e-08]
[1766065403056,6.79694136,2942.5,2941.6,0.10231051]
[1766065403255,7.5857,2942.4,2941.4,1e-08]
[1766065403442,0.405504,2942.4,2940.9,0.10231051]
[1766065403647,0.46438023,2942.2,2940.7,0.10231051]
[1766065403849,5.0436,2941.6,2940.5,1e-08]
[1766065404045,0.405504,2941.8,2940.5,1e-08]
[1766065404046,8.67206,2941.5,2940.5,1e-08]
[1766065404302,0.582,2941.4,2940.5,1e-08]
[1766065404426,0.582,2941.4,2939.6,0.10231051]
[1766065404427,2.5421,2941.1,2939.6,0.10231051]
[1766065404628,0.582,2941.4,2939.6,0.10231051]
[1766065404629,1.76869811,2940.8,2939.6,0.10231051]
[1766065404831,1.76869811,2940.8,2939.4,0.10231051]
[1766065404832,2.947604,2941.1,2939.1,0.10231051]
[1766065405065,7.85591835,2941.2,2938.9,0.10231051]
[1766065405066,6.8024897,2940.1,2938.9,0.10231051]
[1766065405365,5.0436,2939.9,2938.9,0.10231051]
[1766065405569,7.5857,2939.6,2938.6,0.10231051]
[1766065405754,7.5857,2939.6,2938.7,0.10231051]
[1766065406066,10.20373455,2940.1,2938.6,0.10231051]
[1766065406067,7.5857,2940.1,2938.6,0.10231051]
[1766065406267,3.40118239,2940.2,2938.3,7.39153812]
[1766065406440,7.5857,2940.1,2938.7,3.40285264]
[1766065406635,7.5857,2940.1,2938.2,3.4396]
[1766065406848,7.5857,2940.1,2938.3,0.582]
[1766065406849,0.582,2940.1,2938.3,0.582]
[1766065407178,0.46438023,2939.8,2937.9,0.10231051]
[1766065407354,7.5857,2939.3,2937.9,0.10231051]
[1766065407674,0.46438023,2939.4,2936.5,7.39153812]
[1766065407993,5.0436,2938.4,2936.9,0.0340495]
[1766065408203,5.0436,2940.1,2938.3,6.90896072]
[1766065408409,0.582,2940.9,2939.1,10.95894863]
[1766065408583,5.0436,2942.2,2939.3,0.10231051]
[1766065408769,5.0436,2942.2,2940.7,0.10231051]
[1766065408770,3.39881721,2942.2,2940.7,0.10231051]
[1766065408969,7.5857,2942.1,2940.7,0.10231051]
[1766065409208,10.7883432,2944.0,2941.6,0.10231051]
[1766065409419,7.5857,2942.5,2942.0,0.10231051]
[1766065409576,0.582,2942.9,2942.2,0.10231051]
[1766065409773,0.582,2942.9,2942.2,1.051e-05]
[1766065410005,7.5857,2942.9,2942.1,0.10231051]
[1766065410202,8.1677,2942.9,2942.1,0.10231051]
[1766065410498,8.1677,2942.9,2942.3,0.10231051]
[1766065410699,7.5857,2942.9,2942.5,0.10231051]
[1766065410870,7.5857,2942.9,2942.1,0.10231051]
[1766065411305,8.1677,2942.9,2941.9,0.10231051]
[1766065411600,0.582,2944.0,2941.7,0.10231051]
[1766065411830,5.0436,2943.6,2942.4,0.10231051]
[1766065411990,2.5421,2943.8,2942.6,0.10231051]
[1766065412173,0.582,2944.0,2942.6,0.10231051]
[1766065412373,13.5814206,2945.2,2942.6,0.10231051]
[1766065412374,5.0436,2945.1,2943.2,0.10231051]
[1766065412705,7.39153812,2945.8,2943.2,0.10231051]
[1766065412706,2.5421,2946.2,2944.8,0.10231051]
[1766065412901,5.0436,2946.3,2944.8,0.13626867]
[1766065412902,7.5857,2946.3,2944.8,0.13626867]
[1766065413109,0.582,2946.4,2945.4,0.10231051]
[1766065413269,0.582,2946.4,2944.2,0.10231051]
[1766065413270,0.03836649,2946.3,2944.2,0.10231051]
[1766065413470,0.02396558,2946.8,2945.5,0.10231051]
[1766065413471,7.60966558,2946.8,2945.5,0.10231051]
[1766065413703,7.60966558,2946.8,2946.7,0.10231051]
[1766065413704,0.02396558,2946.8,2946.7,0.10231051]
[1766065413878,0.12870759,2946.9,2946.1,0.10231051]
[1766065413879,0.10836604,2946.9,2946.2,5.295995]
[1766065414078,7.5857,2946.8,2946.3,0.10231051]
[1766065414281,7.5857,2946.8,2946.1,0.10231051]
[1766065414599,0.10836604,2946.9,2946.5,0.10231051]
[1766065414778,0.10836604,2946.9,2946.7,0.10231051]
[1766065415202,0.10836604,2946.9,2945.8,0.10231051]
[1766065415203,0.62036649,2946.8,2945.8,0.10231051]
[1766065415411,7.5857,2946.3,2945.1,0.10231051]
[1766065415642,7.5857,2946.3,2944.6,0.10231051]
[1766065415643,0.62036649,2946.2,2945.2,0.10231051]
[1766065415940,8.05008023,2946.0,2945.6,0.10231051]
[1766065416240,0.46438023,2946.0,2945.3,1.051e-05]
[1766065416440,13.68197406,2946.9,2945.6,0.10231051]
[1766065416617,7.5857,2946.6,2946.5,0.10231051]
[1766065416941,3.50177302,2946.9,2946.4,0.10231051]
[1766065417138,3.50177302,2946.9,2946.1,0.10231051]
[1766065417139,3.39374193,2946.6,2946.1,0.10231051]
[1766065417341,3.39374193,2946.6,2945.0,0.10231051]
[1766065417342,0.04242321,2946.5,2945.3,0.10231051]
[1766065417558,7.39153812,2946.0,2943.7,0.583]
[1766065417847,0.46438023,2944.7,2943.7,0.10231051]
[1766065418008,0.583,2944.6,2944.4,0.10231051]
[1766065418209,2.5421,2944.1,2942.6,0.10231051]
[1766065418409,5.0436,2943.9,2942.5,0.10231051]
[1766065418717,5.0436,2943.9,2941.9,4.9308]
[1766065418718,2.5421,2943.5,2942.1,0.10231051]
[1766065418920,2.5421,2943.5,2942.2,0.10231051]
[1766065418921,5.0436,2943.1,2942.2,0.10231051]
[1766065419126,5.0436,2942.1,2941.2,0.10231051]
[1766065419370,5.0436,2942.1,2940.3,0.10231051]
[1766065419371,2.5421,2941.5,2940.3,0.10231051]
[1766065419630,2.2444693,2941.9,2940.3,0.10231051]
[1766065419631,2.5421,2940.9,2940.3,0.10231051]
[1766065419833,0.584,2941.2,2940.5,0.10231051]
[1766065420143,0.584,2941.1,2940.2,0.10231051]
[1766065420344,0.584,2941.0,2940.4,0.10231051]
[1766065420543,7.5857,2940.8,2940.1,0.10231051]
[1766065420842,7.5857,2940.8,2939.8,0.10231051]
[1766065420843,8.32485381,2940.8,2939.7,0.10231051]
[1766065421046,8.32485381,2940.8,2939.6,0.001]
[1766065421047,7.5857,2940.5,2939.6,0.001]
[1766065421214,6.80179566,2940.4,2939.6,0.001]
[1766065421415,2.5421,2940.3,2939.1,0.10231051]
[1766065421616,0.585,2940.2,2939.5,0.10231051]
[1766065421817,5.0436,2940.5,2939.6,0.10231051]
[1766065422138,5.0436,2941.1,2940.3,0.10231051]
[1766065422317,3.39986877,2941.3,2940.5,0.09523648]
[1766065422522,2.3766,2942.6,2941.2,0.09523648]
[1766065422745,7.4163,2942.2,2941.2,0.09523648]
[1766065422918,2.3766,2941.7,2940.9,3.648e-05]
[1766065423142,10.81595244,2941.5,2940.7,0.09523648]
[1766065423341,10.81595244,2941.5,2940.1,0.10231051]
[1766065423342,5.0397,2941.1,2940.1,0.10231051]
[1766065423544,0.46438023,2941.9,2941.0,0.09523648]
[1766065423865,5.0397,2942.0,2941.4,0.09523648]
[1766065423866,0.585,2941.8,2941.4,0.09523648]
[1766065424059,5.0397,2942.0,2940.8,0.09523648]
[1766065424060,0.585,2941.7,2940.8,0.09523648]
[1766065424477,0.585,2941.7,2940.6,0.09523648]
[1766065424478,7.4163,2941.4,2940.6,0.09523648]
[1766065424683,2.9616,2941.3,2940.7,0.09523648]
[1766065424975,5.0397,2940.8,2939.9,0.09523648]
[1766065425140,2.3766,2940.4,2939.9,7.296e-05]
[1766065425345,0.585,2940.6,2940.1,0.09523648]
[1766065425567,3.39974607,2941.4,2940.1,0.09523648]
[1766065425568,0.46438023,2941.4,2940.1,0.09523648]
[1766065425765,2.3766,2940.9,2940.1,0.09523648]
[1766065426048,0.62750544,2940.8,2939.7,0.09523648]
[1766065426368,0.585,2940.7,2940.3,0.09523648]
[1766065426673,0.585,2940.9,2940.6,0.09523648]
[1766065426901,0.585,2941.0,2940.0,0.09523648]
[1766065427043,2.3766,2940.9,2940.0,0.09523648]
[1766065427242,2.3766,2940.4,2939.4,0.09523648]
[1766065427466,0.46438023,2940.7,2939.5,0.09523648]
[1766065427671,0.585,2940.6,2940.1,0.09523648]
[1766065427982,5.0397,2940.8,2939.0,5.2476]
[1766065428181,2.3766,2940.5,2939.7,0.09523648]
[1766065428384,7.4163,2940.5,2939.9,0.09523648]
[1766065428680,7.39153812,2942.1,2940.3,0.09523648]
[1766065428681,0.586,2942.1,2940.3,0.09523648]
[1766065428845,2.3766,2941.6,2940.0,3.40133578]
[1766065429044,2.3766,2941.6,2939.8,0.09523648]
[1766065429045,5.0397,2941.1,2939.8,0.09523648]
[1766065429274,0.04249388,2941.6,2939.5,0.001]
[1766065429275,1.32863,2941.0,2939.5,0.001]
[1766065429445,7.4163,2940.8,2939.5,0.001]
[1766065429780,5.0397,2940.4,2937.2,3.40457171]